Cogmind - Beta 16.1 @@@ ROGUE MODE // 2026.04.24 @ 16:44:07 Player: Bereft Result: Destroyed by G-34 Mercenary with Small Laser Performance ------------- Evolutions (0) 0 Regions Visited (1) 200 Robots Destroyed (5) 25 Value Destroyed (44) 44 Prototype IDs (0) 0 Alien Tech Used (0) 0 Bonus (0) 0 TOTAL SCORE: 269 Bonus ------- None Cogmind --------- Core Integrity 0/250 Matter 300/300 Energy 99/100 System Corruption 0% Temperature Cool (28) Movement Core (50) Location -10/Materials Parts ------- > --- POWER (1) -------- (None) > --- PROPULSION (2) --- (None) > --- UTILITY (2) ------ (None) > --- WEAPON (2) ------- (None) > --- INVENTORY (5) ---- Medium Battery (150) Seismic Detector Power Shielding Light Assault Rifle Mining Laser Peak State ------------ > --- POWER ------------ Light Ion Engine > --- PROPULSION ------- Aluminum Leg Aluminum Leg > --- UTILITY ---------- Small Storage Unit Improved Terrain Scanner > --- WEAPON ----------- Medium Laser Small Laser > --- INVENTORY -------- Light Ion Engine Light Assault Rifle [Rating: 9] Favorites ----------- Power Light Ion Engine Engine Light Ion Engine Propulsion Aluminum Leg Leg Aluminum Leg Utility Small Storage Unit Device Improved Terrain Scanner Storage Small Storage Unit Weapon Small Laser Energy Gun Small Laser Build | -11 -10 ------- Run | Yrd Mat Slots Evolved . | . . Power . | . . Propulsion . | . . Utility . | . . Weapon . | . . Parts Attached 9 | 7 2 Power 2 | 1 1 Engine 2 | 1 1 Core . | . . Reactor . | . . Propulsion 2 | 2 . Treads . | . . Leg 2 | 2 . Wheel . | . . Hover . | . . Flight . | . . Utility 3 | 2 1 Device 1 | 1 . Storage 2 | 1 1 Processor . | . . Hackware . | . . Protection . | . . Artifact . | . . Weapon 2 | 2 . Energy Gun 2 | 2 . Energy Cannon . | . . Ballistic Gun . | . . Ballistic Cannon . | . . Launcher . | . . Special Weapon . | . . Impact Weapon . | . . Slashing Weapon . | . . Piercing Weapon . | . . Special Melee Weapon . | . . Unidentified Prototypes . | . . Parts Lost 5 | . 5 Power 1 | . 1 Propulsion 2 | . 2 Utility 1 | . 1 Weapon 1 | . 1 Highest Loss Streak 5 | . 5 To Critical Strikes . | . . Average Backups 4 | 3 5 Power . | . . Propulsion . | . . Utility 1 | . 2 Weapon 1 | 1 2 Tool/Special . | . . Unused Backups 4 | . 4 Power . | . . Propulsion . | . . Utility 2 | . 2 Weapon 2 | . 2 Tool/Special . | . . Average Slot Usage (%) 94 | . 94 Engine 12 | . 12 Leg 24 | . 24 Device 11 | . 11 Storage 15 | . 15 Energy Gun 28 | . 28 Peak Build Rating 9 | 9 9 Average Rating 8 | 8 8 On Entrance 4 | . 9 Avg Prop Armor Cover (%) . | . . Naked Turns 2 | . 2 Heaviest Build 12 | 12 12 Greatest Support 20 | 20 20 Greatest Overweight (x) 1 | . 1 Average Overweight (x) . | . . Largest Inventory Capacity 8 | 8 8 Average Capacity 7 | 7 7 Most Carried 6 | 4 6 Average Carried 4 | 3 5 Final Capacity 8 | 8 5 Final Carried 5 | 4 5 Class Distribution -------------------- 100% | Mutant Dominant Class ---------------- Mutant | -10/Materials Resources | -11 -10 ----------- Run | Yrd Mat Matter Collected 290 | 270 20 Remotely . | . . Salvage Created 80 | 49 31 Parts 6 | 4 2 Haulers Intercepted . | . . Recyclers Shooed 1 | 1 . Parts Field Recycled . | . . Retrieved Matter . | . . Parts Self-Destructed . | . . Prevented . | . . Parts Restored . | . . Kills | -11 -10 ------- Run | Yrd Mat Combat Hostiles Destroyed 3 | . 3 Guns 3 | . 3 Classes Destroyed 2 | 1 1 Tunneler 2 | 2 . Swarmer 3 | . 3 Best Kill Streak 2 | 2 2 Combat Bots Only 2 | . 2 Max Kills in Single Turn 1 | 1 1 Gunslinging . | . . Exploded . | . . Melee . | . . Uniques/NPCs Destroyed . | . . Combat | -11 -10 -------- Run | Yrd Mat Hostile Shots Fired 99 | . 99 Missed 28 | . 28 Hits 71 | . 71 Projectile 71 | . 71 Damage Taken 672 | . 672 Core 252 | . 252 Absorbed by Shields . | . . Core Remaining (%) 100 | 100 . Volleys Fired 24 | 4 20 Largest 2 | 2 2 Hottest 90 | 90 90 Shots Fired 48 | 8 40 Gun 48 | 8 40 Cannon . | . . Launcher . | . . Special . | . . Kinetic . | . . Thermal 48 | 8 40 Explosive . | . . Electromagnetic . | . . Robot Hit Streak 5 | 4 5 Robot Miss Streak 4 | 1 4 Penetration Max . | . . Secondary Targets 2 | . 2 Max Gunslinging Chain 1 | . 1 Shots Hit Robots 28 | 5 23 Core Hits 7 | 2 5 Critical Kills . | . . Critical Parts Destroyed . | . . Critical Strikes 1 | . 1 Burn 1 | . 1 Melee Attacks . | . . Impact . | . . Slashing . | . . Piercing . | . . Sneak Attacks . | . . Combat Hostiles . | . . Follow-up Attacks . | . . Damage Inflicted 367 | 73 294 Guns 355 | 73 282 Cannons . | . . Explosions . | . . Melee . | . . Ramming 12 | . 12 Kinetic . | . . Thermal 355 | 73 282 Explosive . | . . Electromagnetic . | . . Impact . | . . Slashing . | . . Piercing . | . . Highest Corruption . | . . Average Corruption . | . . Corruption Purged . | . . Corruption Blocked . | . . Overload Shots . | . . Overflow Damage . | . . Projectiles . | . . Explosions . | . . Melee . | . . Knockbacks . | . . Impact . | . . Kinetic . | . . Secondary . | . . Self-Inflicted Damage . | . . Shots . | . . Rammed . | . . Targets Rammed 8 | . 8 Kicked 8 | . 8 Crushed . | . . Highest Temperature 312 | 60 312 Average Temperature 103 | 24 118 Received Heat Transfer 195 | . 195 Siege Activations . | . . Martial Activations . | . . Shielding Activations . | . . Robots Disrupted . | . . Combat Hostiles . | . . Robots Corrupted . | . . Combat Hostiles . | . . Parts Fried . | . . Impact Corruptions . | . . Robots Melted . | . . Combat Hostiles . | . . Parts Melted . | . . Heat Transferred 1016 | 186 830 Parts Sabotaged . | . . Parts Stolen . | . . Parts Stripped . | . . Power Chain Reactions . | . . Alert | -11 -10 ------- Run | Yrd Mat Maximum Alert Level . | . . Low Security (%) 100 | 100 100 Level 1 . | . . Level 2 . | . . Level 3 . | . . Level 4 . | . . Level 5 . | . . High Security . | . . Max Security . | . . Peak Influence 50 | 5 50 Initial . | . . Average 1 | . 9 Influence Increases 105 | 10 95 Destroy 0b10 Robot/C 60 | . 60 Destroy 0b10 Robot/NC 10 | 10 . Destroy Leader 10 | . 10 Successful Hack 10 | . 10 Lose Combat Pursuer 15 | . 15 Influence Decreases 105 | 10 95 Time Decay 65 | 10 55 Lost Part 40 | . 40 Squads Dispatched 2 | . 2 Investigation 1 | . 1 Extermination . | . . Reinforcement 1 | . 1 Assault . | . . Garrison . | . . Intercept . | . . Searches Triggered . | . . Construction Impeded . | . . Haulers Reinforced . | . . Active Scanning Responses . | . . Cargo Convoy Interrupts . | . . Stealth | -11 -10 --------- Run | Yrd Mat Distress Signals 2 | . 2 Communications Jammed . | . . Distress Signals . | . . Times Spotted 13 | . 13 Peak Tracking Total 9 | . 9 Tactical Retreats 1 | . 1 Traps | -11 -10 ------- Run | Yrd Mat Traps Triggered . | . . Indirectly . | . . Trap Hack Attempts . | . . Triggered . | . . Disarmed . | . . Reprogrammed . | . . Reused . | . . Traps Extracted . | . . Installed . | . . Triggered . | . . Machines | -11 -10 ---------- Run | Yrd Mat Machines Disabled . | . . Max in Single Turn . | . . Machines Repaired . | . . Machines Dismantled . | . . Machines Sabotaged . | . . Overloaded Fab Kills . | . . Hacking | -11 -10 --------- Run | Yrd Mat Machines Accessed 2 | . 2 Terminals 2 | . 2 Fabricators . | . . Repair Stations . | . . Recycling Units . | . . Scanalyzers . | . . Garrison Access . | . . Total Hacks 7 | . 7 Successful 4 | . 4 Failed 3 | . 3 Catastrophic 1 | . 1 Database Lockouts . | . . Manual 3 | . 3 Terminals 7 | . 7 Fabricators . | . . Repair Stations . | . . Recycling Units . | . . Scanalyzers . | . . Garrison Access . | . . Terminal Hacks 2 | . 2 Locate Traps 1 | . 1 Zone Layout 1 | . 1 Fabricator Hacks . | . . Repair Station Hacks . | . . Recycling Unit Hacks . | . . Scanalyzer . | . . Garrison Access Hacks . | . . Unauthorized Hacks 2 | . 2 Terminals 2 | . 2 Assimilate 2 | . 2 Fabricators . | . . Repair Stations . | . . Recycling Units . | . . Scanalyzers . | . . Garrison Access . | . . Data Cores Recovered . | . . Used . | . . Hacking Detections 2 | . 2 Full Trace Events 1 | . 1 Feedback Events . | . . Feedback Blocked . | . . Robot Schematics Acquired . | . . Robots Built . | . . Authchips . | . . Time . | . . Total Robot Build Rating . | . . Part Schematics Acquired . | . . Parts Built . | . . Authchips . | . . Time . | . . Total Part Build Rating . | . . Part Studies Acquired . | . . Parts Repaired . | . . Time . | . . Parts Recycled . | . . Recycled Matter . | . . Retrieved Matter . | . . Retrieved Components . | . . Parts Scanalyzed . | . . Part Schematics Acquired . | . . Parts Damaged . | . . Bothacking | -11 -10 ------------ Run | Yrd Mat Used RIF Installer . | . . Robots Hacked . | . . Non-combat . | . . Combat . | . . Robot Hacks Applied . | . . Relay Couplers Released . | . . Fabnet Peak Effective % . | . . Robots Rewired . | . . Allies Hacked . | . . Hacks Repelled . | . . Allies | -11 -10 -------- Run | Yrd Mat Total Allies . | . . Largest Group . | . . Highest-Rated Group . | . . Highest-Rated Ally . | . . Total Orders . | . . Ally Attacks . | . . Total Damage . | . . Kills . | . . Allies Corrupted . | . . Allies Melted . | . . Intel | -11 -10 ------- Run | Yrd Mat Active Infowar (turns) 1204 | 1003 201 Terrain 1204 | 1003 201 Robot Analysis Total . | . . Derelict Logs Recovered . | . . Drone Launches . | . . Drone Recoveries . | . . Exploration | -11 -10 ------------- Run | Yrd Mat Turns Passed 1317 | 1074 243 Spaces Moved 268 | 151 117 Core 11 | 6 5 Treads . | . . Legs 257 | 145 112 Wheels . | . . Hover . | . . Flight . | . . Fastest Speed 50 | 50 50 Average Speed 119 | 117 122 Slowest Speed 190 | 120 190 Overloaded Moves . | . . Propulsion Burnouts . | . . Robots Hopped . | . . Potential Cave-ins . | . . Cave-ins Triggered . | . . Exploration Rate (%) 16 | 11 22 Regions Visited 1 Branch Regions . Pre-discovered Areas . | . . Known Exits Taken . | . . Unknown Exits Taken 1 | 1 . Scrap Searched . | . . Spaces Dug . | . . Terrain Destroyed . | . . Melee . | . . Projectile . | . . AOE . | . . Terrain Rammed . | . . Walls Destroyed . | . . Machines Disabled . | . . Actions | -11 -10 --------- Run | Yrd Mat Total 1211 | 1037 174 Wait 894 | 870 24 Move 267 | 150 117 Hop . | . . Pick Up 8 | 6 2 Fast Attach 5 | 5 . Attach 3 | 2 1 Detach . | . . Swap 2 | . 2 Drop . | . . Fire 24 | 4 20 Melee . | . . Ram . | . . Kick 8 | . 8 Crush . | . . Escape Stasis . | . . Rewire . | . . Trap . | . . Miscellaneous . | . . Route ------- -11/Scrapyard -10/Materials History --------- Turn | Location | Event 4 | -11/Scrapyard | Discovered new exit (range 15) 1075 | -11/Scrapyard | Entered Materials 1076 | -10/Materials | Build established: Mutant 1261 | -10/Materials | Core integrity fell below 50% 1316 | -10/Materials | Core integrity fell below 20% 1316 | -10/Materials | Released all parts (3) 1318 | -10/Materials | Destroyed by G-34 Mercenary with Small Laser Last Messages --------------- K-01 Serf collects debris. Lgt. Ion Engine destroyed. K-01 Serf collects debris. K-01 Serf cleans the Hadron Collector. G-34 Mercenary heat spikes uncontrollably. G-34 Mercenary overheating. Kicked G-34 Mercenary. G-34 Mercenary overheating. Kicked G-34 Mercenary. K-01 Serf collects debris. Kicked G-34 Mercenary. G-34 Mercenary heat damages Aluminum Leg. W-16 Scout sends out distress signal. K-01 Serf collects debris. Imp. Terrain Scanner destroyed. Med. Laser destroyed. Aluminum Leg destroyed. Released Lgt. Ion Engine. Released Sml. Storage Unit. Released Sml. Laser. Map ----- +----------------------------------------------------+ | ??????????????????????????????????????????? | | ??????????????????????????????????????????? | | ??????????????????????????????????????????? | | ??????????????????????????????????????????? | | ??????????????????????????????????????????? | | ??????????????????????????????????????????? | | ??????????????????????????????????????????? | | ??????????????????????????????????????????? | | ??????????????????????????????????????????? | | ??????????????????????????????????????????? | | ??????????????????????????????????????????? | | ??????????????????????????????????????????? | | ??????????????????????????????????????????? | | ???????????????????????????#??????????????? | | ??????????????????????????? ?????????????? | | ????????????????????? ??#?? ?????????????? | | ??????????????????????????? ????????????? | | ??????????????? ##+###?????? ????????????? | | ???????????????? #???? ? ?? ?????????? | | ???????????????? #?????? ????????????? | | ????????????????? #?????##+##???#??????? | | ?????????????????# #?#???# ###?????#??? | | ?????????????????# #????## ??? ? ???? | | ?????????????????# #?????#^^^##??######## | | ???????????????#?# #?????#^^^#?? # | | ????????????????##@ ##???## ##? + | | ????????????????# ##### # # | | ????????????????# # # | | ????????????????# gg T + # | | ????????????????# [ gkgrg # # | | ????????????????# *!#####g u # # | | ????????????????########?### ## # | | ????????????????????? ?? # %##########+# | | ????????????????????#???? + %+%%% % | | ????????????????????????? # %# """ """ | | ???????????????? ???????? # # """ """ ] | | ?????????????????????? ??" # # """ """ | | ????????????????????? ???" # # """ """ "T | | ????????????????????????? # # "" | | ?????????????????????????### ####+####### | | ?????????????????????????### ##?# ####### | | ?????????????????????????## ### ## | | ?????????????????????????## # "" | | ?????????????????????????+ + "T | | ?????????????????????? ??## # "" | | ?????????????????????????## ## # | | ?????????????????????????####+#### ###### | | ?????????????????????????## # #?##?# | | ?????????????????????????## """ # #????# | | ?????????????????????????## """ # ##???# | +----------------------------------------------------+ Best States ------------- Heat Dissipation 25 Energy Generation 10 Energy Capacity 275 Matter Stores 300 Matter Capacity 300 Sight Range 16 Terrain Scan Range 16 Terrain Scan Density 10 Evasion (%) 55 Item Schematics ----------------- None Robot Schematics ------------------ None Fabricated ------------ Nothing Repaired ---------- Nothing Studied --------- None Alien Tech Used ----------------- None Achievements -------------- None Challenges ------------ None Game ------ Seed TrapThiefDeck Manual? 0 Play Time 00:07:34 Cumulative 26.6 hours Start 2026.04.24 @ 16:39:24 End 2026.04.24 @ 16:44:07 Sessions 1 Manual Loads 0 Difficulty Rogue Special Mode None Game No. 47 Rogue 47 Adventurer 0 Explorer 0 Win Type - Total 0 Types 0/0/0/0/0/0/0/0/0/0 Lore% 22 Gallery% 23 Achievement% 21 Wizard Run 0 Options --------- Layout 1 ASCII 0 Keyboard 0 Movement Numpad Keybinds 0 Fullscreen 1 Font 32/SmallcapsGlow Map View 50x35 Zoom Use 0% Tactical HUD 0 Map Filters NONE Filters NONE Steam 1 RUN: ffa5362e-5a46-44aa-a8cd-de2863f8cce7